bitfinex-derivatives/quotes_SOLF0:USTF0_20240927
["timestamp","ask_amount","ask_price","bid_price","bid_amount"]
[1727437060961,3.2011,156.16,156.13,3.2015]
[1727437063248,3.2012,156.15,156.13,3.2015]
[1727437067760,3.2012,156.15,156.12,14.0318]
[1727437068462,23.14747598,156.16,156.12,10.83]
[1727437068759,1.3354,156.22,156.13,10.83]
[1727437068959,10.83,156.19,156.13,10.83]
[1727437069766,10.83,156.19,156.13,14.0315]
[1727437070859,3.201,156.17,156.13,14.0315]
[1727437071661,3.201,156.17,156.14,3.2014]
[1727437075261,10.83,156.16,156.07,1.3657]
[1727437075468,10.83,156.16,156.11,10.83]
[1727437075868,3.2013,156.15,156.12,3.2017]
[1727437081279,3.2015,156.14,156.11,14.0319]
[1727437081480,3.2015,156.14,156.11,3.2019]
[1727437082779,3.2016,156.13,156.11,3.2019]
[1727437083372,3.2016,156.13,156.06,1.287]
[1727437083373,10.83,156.12,156.06,1.287]
[1727437083682,10.83,156.11,156.06,1.287]
[1727437083879,3.2025,156.09,156.06,4.49]
[1727437084581,2.6288,156.16,156.06,4.49]
[1727437084582,3.2028,156.07,156.06,1.287]
[1727437084882,3.2028,156.07,156.04,54.51449113]
[1727437085374,3.2031,156.06,156.02,3.2038]
[1727437085580,10.83,156.05,155.99,1.3843]
[1727437085781,10.83,156.05,156.0,10.83]
[1727437086178,14.0334,156.05,156.01,3.204]
[1727437087075,3.2034,156.05,156.01,3.204]
[1727437089085,3.2031,156.06,156.02,14.0337]
[1727437089277,10.83,156.07,156.03,10.83]
[1727437090887,14.0329,156.07,156.04,3.2033]
[1727437091678,1.3136,156.15,156.06,10.83]
[1727437091877,10.83,156.13,156.08,10.83]
[1727437092788,12.1773,156.14,156.09,10.83]
[1727437092984,1.2968,156.13,156.09,10.83]
[1727437093182,10.83,156.14,156.09,10.83]
[1727437093783,3.202,156.12,156.09,14.0323]
[1727437093980,10.83,156.13,156.07,10.83]
[1727437094379,3.2022,156.11,156.07,14.0327]
[1727437094789,3.2022,156.11,156.07,3.2027]
[1727437094989,10.83,156.13,156.07,3.2027]
[1727437094990,10.83,156.13,156.07,14.0327]
[1727437096193,3.2022,156.11,156.07,14.0327]
[1727437098599,3.2019,156.12,156.08,10.83]
[1727437098794,3.2019,156.12,156.09,10.83]
[1727437099197,3.2019,156.12,156.09,14.0323]
[1727437099997,3.2019,156.12,156.09,3.2023]
[1727437100400,94.24646999,156.16,156.09,10.83]
[1727437100596,2.7258,156.22,156.13,10.83]
[1727437100799,10.83,156.18,156.13,10.83]
[1727437102800,3.2009,156.17,156.14,3.2014]
[1727437103798,3.2009,156.17,156.14,14.0314]
[1727437104402,3.2004,156.19,156.15,3.2011]
[1727437105905,3.2006,156.18,156.15,3.2011]
[1727437106597,12.28454074,156.2,156.15,3.2011]
[1727437106598,3.2004,156.19,156.16,10.83]
[1727437106806,10.83,156.17,156.11,3.2018]
[1727437107003,3.2014,156.15,156.11,3.2018]
[1727437108501,3.2015,156.14,156.1,14.0322]
[1727437108704,3.2015,156.14,156.1,10.83]
[1727437109803,3.2015,156.14,156.11,3.202]
[1727437114510,3.2015,156.14,156.12,14.0318]
[1727437118014,3.2012,156.15,156.13,3.2016]
[1727437118906,3.2012,156.15,156.12,10.83]
[1727437119106,3.2012,156.15,156.12,14.0317]
[1727437119707,3.2015,156.14,156.12,10.83]
[1727437121221,3.2016,156.13,156.12,10.83]
[1727437121417,10.83,156.13,156.06,14.8185]
[1727437121621,10.83,156.11,156.06,14.8185]
[1727437121915,3.2021,156.11,156.08,3.2025]
[1727437122519,3.2021,156.11,156.09,3.2024]
[1727437122921,14.0319,156.12,156.09,3.2024]
[1727437123121,3.2019,156.12,156.09,14.0324]
[1727437127030,3.202,156.11,156.09,14.0324]
[1727437127630,3.2019,156.12,156.09,14.0324]
[1727437131128,3.2017,156.13,156.1,3.2022]
[1727437131830,3.2018,156.12,156.1,3.2022]
[1727437133832,3.2017,156.13,156.1,3.2022]
[1727437135835,3.2017,156.13,156.09,10.83]
[1727437135836,3.202,156.12,156.09,3.2023]
[1727437136036,10.83,156.14,156.09,3.2023]
[1727437136632,3.2019,156.12,156.09,3.2023]
[1727437137337,3.2019,156.12,156.08,10.83]
[1727437137538,3.2017,156.13,156.09,10.83]
[1727437138436,2.649,156.21,156.12,3.2018]
[1727437138627,10.83,156.16,156.12,3.2018]
[1727437139137,3.2013,156.15,156.12,3.2018]
[1727437140740,10.83,156.14,156.11,3.202]
[1727437141135,14.032,156.12,156.09,3.2024]
[1727437141434,2.649,156.21,156.06,3.9885]
[1727437141435,10.83,156.1,156.06,3.9885]
[1727437141737,14.0323,156.1,156.07,3.2027]
[1727437142241,14.0323,156.1,156.08,3.2026]
[1727437142438,10.83,156.1,156.08,3.2026]
[1727437144739,3.2021,156.11,156.08,3.2026]
[1727437148543,3.2017,156.13,156.09,10.83]
[1727437148744,3.23869849,156.17,156.1,10.83]
[1727437148941,10.83,156.15,156.1,10.83]
[1727437149340,3.2016,156.14,156.11,3.2019]
[1727437150637,10.83,156.17,156.11,10.83]
[1727437150842,10.83,156.17,156.13,10.83]
[1727437151548,3.2011,156.16,156.13,14.0315]
[1727437158650,3.2011,156.16,156.14,3.2014]
[1727437158852,3.2009,156.17,156.14,3.2014]
[1727437160147,3.2009,156.17,156.14,14.0314]
[1727437162354,3.2011,156.16,156.13,14.0315]
[1727437164052,3.2011,156.16,156.14,14.0313]
[1727437164355,3.2009,156.17,156.14,14.0313]
[1727437164554,3.2009,156.17,156.15,3.2011]
[1727437165258,3.2007,156.18,156.15,3.2011]
[1727437166753,3.25088246,156.25,156.17,10.83]
[1727437166964,22.16998726,156.23,156.18,10.83]
[1727437167258,10.83,156.23,156.18,14.0306]
[1727437167859,10.83,156.23,156.19,3.2002]
[1727437168167,10.83,156.23,156.18,10.83]
[1727437169358,3.2001,156.21,156.18,14.0305]
[1727437171362,3.2002,156.2,156.17,14.0307]
[1727437173056,3.2002,156.2,156.18,3.2006]
[1727437174755,3.2004,156.19,156.13,3.9598]
[1727437175058,3.2004,156.19,156.16,10.83]
[1727437175260,3.2004,156.19,156.16,14.0309]
[1727437178157,3.2004,156.19,156.17,10.83]
[1727437179269,10.83,156.2,156.13,3.9598]
[1727437179564,10.83,156.19,156.13,3.9598]
[1727437179757,3.201,156.17,156.14,14.0313]
[1727437181670,10.83,156.16,156.09,2.6515]
[1727437181868,10.83,156.16,156.11,10.83]
[1727437182061,10.83,156.17,156.13,10.83]
[1727437182257,3.2011,156.16,156.14,10.83]
[1727437182963,3.2009,156.17,156.15,10.83]
[1727437190867,3.2009,156.17,156.14,14.0314]
[1727437191075,3.201,156.16,156.14,10.83]
[1727437191864,3.201,156.16,156.13,14.0315]
[1727437192069,10.83,156.15,156.09,2.6515]
[1727437192269,10.83,156.15,156.1,10.83]
[1727437192470,3.2015,156.14,156.11,3.202]
[1727437195975,3.2017,156.13,156.1,14.0322]
[1727437196174,3.2017,156.13,156.1,10.83]
[1727437196573,3.2022,156.1,156.07,3.2027]
[1727437197477,3.2023,156.1,156.07,3.2027]
[1727437197774,10.83,156.11,156.06,3.203]
[1727437198077,3.2025,156.09,156.06,3.203]
[1727437198979,3.2023,156.1,156.07,3.2028]
[1727437200575,3.2023,156.1,156.07,14.0328]
[1727437200878,3.2021,156.11,156.08,3.2026]
[1727437201174,10.83,156.12,156.07,10.83]
[1727437201780,3.2023,156.1,156.07,14.0327]
[1727437201970,1.2638,156.14,156.09,10.83]
[1727437202170,10.83,156.16,156.11,10.83]
[1727437203575,3.2014,156.14,156.11,14.0318]
[1727437204480,3.2013,156.15,156.12,3.2018]
[1727437204980,10.83,156.16,156.12,3.2018]
[1727437205578,3.2012,156.15,156.12,3.2018]
[1727437206786,3.2014,156.14,156.11,3.2019]
[1727437207578,10.83,156.14,156.1,3.2021]
[1727437207782,3.27800128,156.15,156.09,10.83]
[1727437207982,10.83,156.14,156.09,10.83]
[1727437208184,3.2016,156.13,156.09,10.83]
[1727437208778,3.2018,156.12,156.09,10.83]
[1727437209571,3.2018,156.12,156.09,14.0323]
[1727437210983,3.16333209,156.15,156.06,10.83]
[1727437211183,2.6646,156.2,156.06,10.83]
[1727437211184,10.83,156.11,156.06,10.83]
[1727437211385,3.2022,156.1,156.06,10.83]
[1727437211977,3.2022,156.1,156.07,3.2027]
[1727437226490,10.83,156.09,156.05,1.3232]
[1727437226713,10.83,156.07,156.03,65.34766639]
[1727437227594,14.0329,156.07,156.04,3.2033]
[1727437227798,14.0329,156.07,156.03,65.34766639]
[1727437228791,14.0329,156.07,156.05,3.2032]
[1727437229398,10.83,156.07,156.05,3.2032]
[1727437232099,10.83,156.06,155.99,3.9857]
[1727437232300,10.83,156.02,155.77,43.6969292]
[1727437232604,3.2043,156.0,155.97,3.2048]
[1727437232794,14.0343,156.0,155.97,3.2048]
[1727437234205,1.2938,156.05,155.98,3.2046]
[1727437234405,10.83,156.02,155.98,14.0346]
[1727437234605,10.83,156.04,155.99,10.83]
[1727437235104,14.0338,156.03,155.99,3.2044]
[1727437235497,10.83,156.03,155.99,3.2044]
[1727437236908,14.0338,156.03,155.99,3.2044]
[1727437237109,14.0338,156.03,156.0,3.2042]
[1727437237701,14.0338,156.03,155.98,10.83]
[1727437237702,3.2041,156.01,155.98,3.2045]
[1727437237900,14.0341,156.01,155.98,3.2045]
[1727437238105,10.83,156.01,155.96,1.2822]
[1727437238302,10.83,155.99,155.95,1.3823]
[1727437238805,10.83,155.99,155.94,10.83]
[1727437239005,10.83,155.99,155.95,3.2051]
[1727437239006,14.0346,155.99,155.95,3.2051]
[1727437239203,10.83,155.98,155.91,4.62312979]
[1727437239409,10.83,155.98,155.93,10.83]
[1727437239607,14.0348,155.98,155.95,3.2053]
[1727437241210,14.0348,155.98,155.94,3.2055]
[1727437243209,14.0348,155.98,155.95,3.2053]
[1727437244419,3.205,155.97,155.93,3.2057]
[1727437244619,10.83,155.96,155.93,3.2057]
[1727437245718,10.83,155.96,155.94,3.2055]
[1727437248116,14.0352,155.96,155.68,2.8085445]
[1727437248313,10.83,155.95,155.9,10.83]
[1727437248818,14.0355,155.95,155.92,3.2058]
[1727437249921,4.45796748,156.05,155.91,10.83]
[1727437250121,4.45796748,156.05,155.93,10.83]
[1727437250320,10.83,155.99,155.95,10.83]
[1727437250521,14.0346,155.99,155.96,3.2051]
[1727437251318,14.0347,155.98,155.95,3.2053]
[1727437252628,3.2049,155.97,155.94,14.0354]
[1727437252923,14.0349,155.97,155.94,3.2054]
[1727437253222,10.83,155.96,155.92,10.83]
[1727437253525,10.83,155.95,155.9,13.4841]
[1727437254621,10.83,155.96,155.92,3.2058]
[1727437255326,14.0352,155.96,155.92,3.2058]
[1727437255523,14.0352,155.96,155.93,3.2057]
[1727437259325,3.205,155.97,155.94,3.2054]
[1727437259927,4.45796748,156.05,155.94,10.83]
[1727437260126,10.83,155.99,155.95,10.83]
[1727437260830,10.83,155.99,155.96,3.205]
[1727437260831,14.0346,155.99,155.96,3.205]
[1727437262230,14.0347,155.98,155.96,3.205]
[1727437262432,10.83,155.97,155.9,2.6541]
[1727437262722,10.83,155.97,155.91,10.83]
[1727437263136,14.035,155.97,155.94,3.2054]
[1727437268935,3.2052,155.96,155.93,3.2057]
[1727437269138,10.83,155.96,155.91,10.83]
[1727437269550,3.2054,155.95,155.92,3.2058]
[1727437270041,3.2054,155.95,155.91,10.83]
[1727437270250,10.83,155.97,155.92,10.83]
[1727437270937,14.035,155.97,155.94,3.2055]
[1727437271339,3.205,155.97,155.94,3.2055]
[1727437271650,14.035,155.97,155.94,3.2055]
[1727437272044,3.2047,155.99,155.96,3.2051]
[1727437272243,10.83,156.0,155.96,10.83]
[1727437272646,14.0344,156.0,155.97,3.2048]
[1727437272945,10.83,156.0,155.96,10.83]
[1727437273143,10.83,155.99,155.95,10.83]
[1727437273849,14.0347,155.99,155.96,3.2051]
[1727437274052,14.0347,155.99,155.95,10.83]
[1727437274449,3.2047,155.98,155.95,14.0352]
[1727437275153,10.83,155.97,155.94,3.2053]
[1727437275647,10.83,155.97,155.95,3.2052]
[1727437276549,98.77215469,156.05,155.96,10.83]
[1727437276743,4.45796748,156.05,155.98,10.83]
[1727437277040,10.83,156.02,155.97,10.83]
[1727437277437,10.83,156.02,155.98,10.83]
[1727437277641,4.45796748,156.05,155.99,3.2043]
[1727437277840,10.83,156.04,155.99,3.2043]
[1727437278040,3.2037,156.03,156.0,10.83]
[1727437278751,14.0335,156.04,156.0,14.0343]
[1727437279744,3.2033,156.05,156.01,14.034]
[1727437279944,3.2033,156.05,156.01,10.83]
[1727437280144,1.3141,156.1,156.03,10.83]
[1727437280353,14.05580039,156.09,156.03,10.83]
[1727437280552,10.83,156.07,156.02,10.83]
[1727437281654,10.83,156.07,155.97,3.9372]
[1727437281860,3.2031,156.06,156.02,3.2038]
[1727437284059,10.83,156.06,155.97,3.9372]
[1727437284355,10.83,156.06,156.0,10.83]
[1727437285852,10.83,156.05,155.97,3.9372]
[1727437286052,10.83,156.05,155.99,10.83]
[1727437286355,10.83,156.05,155.99,14.0343]
[1727437286356,3.2039,156.02,155.99,14.0343]
[1727437287455,3.2039,156.02,155.98,3.2046]
[1727437287757,3.2039,156.02,155.99,10.83]
[1727437291554,3.2039,156.02,155.99,14.0345]
[1727437291950,3.2039,156.02,155.99,10.83]
[1727437292861,3.2039,156.02,155.99,14.0345]
[1727437297165,10.83,156.03,155.99,10.83]
[1727437297651,3.204,156.02,155.99,10.83]
[1727437298160,3.2037,156.03,156.0,10.83]
[1727437298864,3.2037,156.03,156.0,14.0341]
[1727437304469,10.83,156.06,156.02,10.83]
[1727437304963,10.83,156.03,155.97,3.9372]
[1727437305369,10.83,156.01,155.97,12.0932]
[1727437305664,14.0342,156.01,155.98,3.2046]
[1727437308567,3.2042,156.01,155.99,3.2045]
[1727437309165,3.204,156.02,155.99,3.2045]
[1727437310371,10.83,156.03,155.99,3.2045]
[1727437311473,3.204,156.02,155.99,3.2045]
[1727437313370,3.204,156.02,155.99,14.0345]
[1727437314573,3.2039,156.02,155.99,3.2045]
[1727437321186,3.2041,156.01,155.99,3.2045]
[1727437322788,3.2041,156.01,155.98,14.0346]
[1727437322984,3.2041,156.01,155.98,3.2046]
[1727437323186,14.0341,156.01,155.98,3.2046]
[1727437323988,3.21556492,156.05,155.97,1.2632]
[1727437323989,10.83,156.0,155.97,1.2632]
[1727437324190,10.83,156.0,155.96,3.205]
[1727437324782,3.2048,155.98,155.94,3.2053]
[1727437324986,10.83,156.0,155.94,14.0353]
[1727437325582,3.21320782,156.03,155.94,14.0353]
[1727437325784,3.2049,155.97,155.94,14.0353]
[1727437327687,10.83,155.96,155.92,3.2058]
[1727437327889,10.83,155.96,155.92,14.0358]
[1727437328496,3.2054,155.95,155.92,3.2058]
[1727437329398,3.2056,155.94,155.91,3.2061]
[1727437329696,10.83,155.95,155.9,10.83]
[1727437330197,10.83,155.95,155.9,14.0362]
[1727437330897,3.2056,155.94,155.9,14.0362]
[1727437335207,3.22772375,155.99,155.89,3.2065]
[1727437335208,14.036,155.92,155.89,3.2065]
[1727437335902,14.036,155.92,155.88,14.0367]
[1727437336501,3.2062,155.91,155.88,14.0367]
[1727437336905,14.0362,155.91,155.87,14.0369]
[1727437339906,14.0362,155.91,155.88,3.2067]
[1727437340097,10.83,155.91,155.88,14.0367]
[1727437340904,3.206,155.92,155.88,14.0367]
[1727437341605,79.40772375,155.99,155.91,10.83]
[1727437341799,10.83,155.96,155.91,10.83]
[1727437342108,10.83,155.94,155.89,10.83]
[1727437342299,10.83,155.93,155.85,4.1331]
[1727437342500,10.83,155.93,155.88,10.83]
[1727437343204,10.83,155.92,155.88,10.83]
[1727437343806,14.0359,155.92,155.89,3.2064]
[1727437346003,3.2062,155.91,155.88,3.2067]
[1727437346207,79.40772375,155.99,155.88,10.83]
[1727437346510,10.83,155.93,155.88,10.83]
[1727437346712,14.0359,155.93,155.89,3.2064]
[1727437347006,3.2059,155.93,155.89,3.2064]
[1727437347215,14.0359,155.93,155.9,3.2062]
[1727437350110,10.83,155.91,155.85,4.1331]
[1727437350314,10.83,155.91,155.87,10.83]
[1727437351209,3.2064,155.9,155.87,14.0368]
[1727437352310,3.2064,155.9,155.87,3.2068]
[1727437353321,3.2066,155.89,155.86,3.2071]
[1727437355118,3.2068,155.88,155.85,7.3404]
[1727437356014,94.35322553,155.97,155.72,85.83]
[1727437356015,10.83,155.86,155.72,76.2]
[1727437356316,10.83,155.83,155.79,10.83]
[1727437356917,14.0379,155.83,155.79,14.0384]
[1727437357517,10.83,155.83,155.8,3.2083]
[1727437357711,3.2076,155.84,155.8,14.0383]
[1727437359620,10.83,155.83,155.8,3.2083]
[1727437359915,14.0378,155.83,155.8,3.2083]
[1727437361519,10.83,155.82,155.78,1.3717]
[1727437362123,14.0381,155.82,155.78,4.5804]
[1727437363123,14.0381,155.82,155.79,3.2085]
[1727437363430,10.83,155.82,155.79,3.2085]
[1727437363920,10.83,155.82,155.78,4.5804]
[1727437363921,14.038,155.82,155.78,4.5804]
[1727437364427,10.83,155.81,155.78,4.5804]
[1727437365125,14.0383,155.81,155.78,1.3717]
[1727437366324,10.83,155.81,155.78,4.5804]
[1727437368034,14.0383,155.81,155.78,4.5804]
[1727437368736,3.21199194,155.87,155.79,3.2085]
[1727437369035,10.83,155.83,155.79,3.2085]
[1727437369426,10.83,155.81,155.79,3.2085]
[1727437371043,10.83,155.82,155.79,3.2085]
[1727437374544,14.038,155.82,155.79,3.2085]
[1727437375945,10.83,155.8,155.78,1.3717]
[1727437376338,10.83,155.79,155.74,10.83]
[1727437376545,10.83,155.79,155.76,3.2092]
[1727437377543,10.83,155.79,155.77,3.209]
[1727437380343,10.83,155.81,155.77,10.83]
[1727437380740,2.6444,155.88,155.75,10.83]
[1727437380741,10.83,155.8,155.75,10.83]
[1727437381151,10.83,155.8,155.78,3.2088]
[1727437381851,82.01611797,155.88,155.78,3.2088]
[1727437382244,10.83,155.86,155.73,1.2825]
[1727437382445,10.83,155.85,155.8,10.83]
[1727437383249,10.83,155.85,155.73,1.2825]
[1727437383250,14.0376,155.84,155.79,10.83]
[1727437384444,14.0376,155.84,155.8,3.2083]
[1727437386350,176.42789681,155.88,155.81,10.83]
[1727437386351,3.2072,155.86,155.81,10.83]
[1727437386552,78.8844,155.88,155.81,10.83]
[1727437386751,10.83,155.86,155.81,10.83]
[1727437387058,14.0373,155.86,155.82,3.2079]
[1727437387852,10.83,155.85,155.82,3.2079]
[1727437388357,14.0374,155.85,155.81,3.2081]
[1727437388947,3.2074,155.85,155.82,3.2079]
[1727437389148,14.0374,155.85,155.82,3.2079]
[1727437390859,3.207,155.87,155.84,3.2076]
[1727437391060,10.83,155.85,155.81,10.83]
[1727437391457,14.0374,155.85,155.82,3.2078]
[1727437393960,3.207,155.87,155.84,3.2076]
[1727437394262,10.83,155.86,155.84,3.2076]
[1727437394456,10.83,155.86,155.74,6.4192]
[1727437394457,10.83,155.85,155.74,6.4192]
[1727437394657,10.83,155.84,155.79,10.83]
[1727437395460,10.83,155.84,155.81,3.208]
[1727437398068,14.0375,155.85,155.81,3.208]
[1727437401563,14.0375,155.85,155.82,3.2079]
[1727437403168,3.2072,155.86,155.83,3.2078]
[1727437412982,3.14066747,155.91,155.83,10.83]
[1727437413281,10.83,155.89,155.84,10.83]
[1727437413487,10.83,155.89,155.86,3.2071]
[1727437413488,14.0367,155.89,155.86,3.2071]
[1727437413679,10.83,155.89,155.86,3.2071]
[1727437413876,2.6746,155.92,155.84,10.83]
[1727437414077,14.0365,155.9,155.87,3.2068]
[1727437414583,3.2062,155.91,155.88,10.83]
[1727437414982,94.36947846,155.94,155.88,10.83]
[1727437415287,14.0358,155.93,155.9,3.2063]
[1727437415488,10.83,155.93,155.9,3.2063]
[1727437415786,23.12488716,155.93,155.9,3.2063]
[1727437416585,3.2059,155.92,155.89,3.2065]
[1727437416885,15.50078716,155.92,155.89,3.2065]
[1727437417093,12.29488716,155.92,155.89,10.83]
[1727437417389,12.29488716,155.93,155.9,10.83]
[1727437417987,12.29488716,155.93,155.91,3.206]
[1727437418188,12.29488716,155.93,155.9,10.83]
[1727437418383,12.29488716,155.93,155.92,10.83]
[1727437418688,12.29488716,155.93,155.92,14.0359]
[1727437418889,94.36947846,155.94,155.92,14.0359]
[1727437421599,5.8851,155.98,155.93,10.83]
[1727437421812,6.405,156.09,155.94,10.83]
[1727437421813,14.0312721,156.0,155.94,10.83]
[1727437422095,10.83,156.0,155.94,10.83]
[1727437422502,3.2046,155.99,155.94,10.83]
[1727437422805,3.2046,155.99,155.95,10.83]
[1727437423788,3.2046,155.99,155.95,14.0352]
[1727437424193,14.0344,156.0,155.95,10.83]
[1727437424596,10.83,156.0,155.96,3.205]
[1727437426001,3.2045,155.99,155.96,3.205]
[1727437426801,3.2047,155.98,155.94,3.2053]
[1727437427099,3.2047,155.98,155.94,14.0353]
[1727437427505,3.2049,155.97,155.94,10.83]
[1727437428195,3.2047,155.98,155.94,14.0355]
[1727437428501,10.83,155.99,155.94,14.0355]
[1727437428699,10.83,155.99,155.94,3.2055]
[1727437428907,10.83,155.99,155.85,4.0876]
[1727437429202,10.83,155.99,155.93,10.83]
[1727437429701,3.205,155.97,155.93,14.0356]
[1727437429905,10.83,155.96,155.91,10.83]
[1727437430200,10.83,155.95,155.91,10.83]
[1727437430404,10.83,155.94,155.85,4.0876]
[1727437430701,10.83,155.94,155.9,10.83]
[1727437431102,3.2057,155.93,155.9,10.83]
[1727437431304,10.83,155.94,155.9,10.83]
[1727437432902,14.0356,155.94,155.9,14.0363]
[1727437433106,10.83,155.94,155.9,10.83]
[1727437433400,14.0359,155.93,155.88,14.0366]
[1727437433904,14.0359,155.93,155.89,3.2065]
[1727437434496,3.206,155.92,155.88,14.0367]
[1727437436808,3.2057,155.93,155.89,3.2064]
[1727437437000,10.83,155.94,155.88,10.83]
[1727437437199,3.206,155.92,155.88,14.0365]
[1727437437704,3.206,155.92,155.89,3.2065]
[1727437439005,10.83,155.91,155.87,3.2069]
[1727437439203,10.83,155.94,155.89,10.83]
[1727437439905,3.2059,155.92,155.89,10.83]
[1727437440409,3.2059,155.92,155.89,14.0365]
[1727437442612,14.0359,155.92,155.89,14.0365]
[1727437444117,3.2062,155.91,155.88,3.2067]
[1727437444310,14.0362,155.91,155.88,3.2067]
[1727437444613,14.0362,155.91,155.86,10.83]
[1727437445014,14.0362,155.91,155.87,3.2068]
[1727437447018,14.0362,155.91,155.88,3.2067]
[1727437447219,3.2062,155.91,155.88,14.0367]
[1727437447814,76.2,156.0,155.9,10.83]
[1727437448012,10.83,155.95,155.9,10.83]
[1727437448214,3.2058,155.93,155.9,14.0362]
[1727437448413,10.83,155.95,155.9,14.0362]
[1727437448816,3.2056,155.94,155.9,14.0362]
[1727437451016,3.2057,155.93,155.9,14.0362]
[1727437453721,14.0357,155.93,155.9,3.2062]
[1727437453922,10.83,155.93,155.89,10.83]
[1727437454123,10.83,155.92,155.87,10.83]
[1727437454319,10.83,155.91,155.87,10.83]
[1727437454522,3.2065,155.9,155.87,14.0368]
[1727437454719,10.83,155.91,155.87,14.0368]
[1727437455921,14.0362,155.91,155.87,14.0368]
[1727437458222,10.83,155.91,155.85,4.0876]
[1727437458428,10.83,155.89,155.85,4.0876]
[1727437458830,10.83,155.9,155.86,10.83]
[1727437459231,14.0365,155.9,155.86,14.037]
[1727437459429,3.2065,155.9,155.86,14.037]
[1727437459827,3.2065,155.9,155.87,3.2069]
[1727437460422,3.2062,155.91,155.88,10.83]
[1727437462432,3.2062,155.91,155.88,14.0367]
[1727437464228,3.206,155.92,155.89,14.0365]
[1727437464530,105.19185351,155.95,155.9,10.83]
[1727437464730,3.2056,155.94,155.91,3.206]
[1727437465435,3.2056,155.94,155.92,10.83]
[1727437467828,3.2058,155.93,155.9,3.2063]
[1727437468738,3.206,155.92,155.89,14.0365]
[1727437468940,10.83,155.92,155.88,10.83]
[1727437469736,3.2063,155.91,155.88,14.0367]
[1727437474240,3.2063,155.9,155.88,10.83]
[1727437474438,3.2063,155.9,155.87,14.0369]
[1727437474937,3.18960898,155.94,155.85,4.0876]
[1727437474938,3.2066,155.89,155.86,14.0371]
[1727437475842,3.2064,155.9,155.86,14.0371]
[1727437476143,3.2064,155.9,155.87,10.83]
[1727437479245,3.2062,155.91,155.88,3.2067]
[1727437479447,3.2062,155.91,155.88,14.0367]
[1727437480344,3.2062,155.91,155.88,10.83]
[1727437483145,3.2063,155.9,155.87,3.2069]
[1727437483344,3.2063,155.9,155.87,14.0369]
[1727437486251,3.2062,155.91,155.88,3.2067]
[1727437486453,94.36185351,155.95,155.89,10.83]
[1727437486654,10.83,155.94,155.89,10.83]
[1727437487054,3.2061,155.92,155.89,14.0364]
[1727437487445,10.83,155.92,155.88,10.83]
[1727437488757,3.2062,155.91,155.88,14.0366]
[1727437492057,3.2065,155.9,155.87,3.2069]
[1727437492253,3.2065,155.9,155.87,14.0369]
[1727437493057,3.2062,155.91,155.87,14.0369]
[1727437493258,3.2062,155.91,155.88,14.0367]
[1727437495757,3.2064,155.9,155.85,4.0876]
[1727437495954,3.2064,155.9,155.86,10.83]